bitfinex/quotes_BTCUSD_20251104
["timestamp","ask_amount","ask_price","bid_price","bid_amount"]
[1762260452564,0.89003791,104060.0,104050.0,0.25092528]
[1762260453154,0.89003791,104060.0,104050.0,0.05471]
[1762260453357,0.89003791,104060.0,104050.0,0.05271]
[1762260453711,0.91057853,104060.0,104050.0,0.05471]
[1762260453871,0.89003791,104060.0,104050.0,0.24792528]
[1762260456345,0.89003791,104060.0,104050.0,0.05571]
[1762260456570,0.89003791,104060.0,104050.0,0.24792528]
[1762260460951,0.69784111,104060.0,104050.0,0.34340435]
[1762260461154,0.89016595,104070.0,104060.0,0.1921968]
[1762260461489,0.92851759,104070.0,104060.0,0.2445668]
[1762260461892,0.92851759,104070.0,104060.0,0.05237]
[1762260462993,0.92851759,104070.0,104060.0,0.05337]
[1762260463201,0.92851759,104070.0,104060.0,0.2455668]
[1762260463408,0.92851759,104070.0,104060.0,0.2465668]
[1762260464981,0.21285431,104070.0,104060.0,0.2465668]
[1762260465137,0.7473762,104070.0,104060.0,0.2465668]
[1762260465730,0.93955454,104070.0,104060.0,0.2465668]
[1762260465943,0.7473762,104070.0,104060.0,0.2465668]
[1762260466384,0.93955454,104070.0,104060.0,0.2465668]
[1762260466715,0.93955454,104070.0,104060.0,0.05437]
[1762260466929,0.93955454,104070.0,104060.0,0.2465668]
[1762260467321,0.02900482,104070.0,104060.0,0.2465668]
[1762260467563,0.0001457,104070.0,104060.0,0.2465668]
[1762260468385,0.0001457,104070.0,104060.0,0.2455668]
[1762260468893,0.0001457,104070.0,104060.0,0.2485668]
[1762260469099,0.0001457,104070.0,104060.0,0.2475668]
[1762260469314,0.0001457,104070.0,104060.0,0.2495668]
[1762260470339,0.19232404,104070.0,104060.0,0.2495668]
[1762260470750,0.89016515,104070.0,104060.0,0.2495668]
[1762260470957,1.00067121,104070.0,104060.0,0.005]
[1762260471198,1.0691306,104070.0,104060.0,0.005]
[1762260471390,1.12912186,104070.0,104060.0,0.005]
[1762260471839,1.12912186,104070.0,104060.0,0.002]
[1762260472265,0.19221528,104050.0,104040.0,0.01235]
[1762260472448,0.91057458,104050.0,104040.0,0.01235]
[1762260472621,0.91057458,104050.0,104040.0,0.05027]
[1762260473032,0.9394402,104050.0,104040.0,0.05027]
[1762260473285,0.91892201,104050.0,104040.0,0.05027]
[1762260473441,0.91892201,104050.0,104040.0,0.02743]
[1762260473641,0.91892201,104050.0,104040.0,0.05227]
[1762260474024,0.91892201,104050.0,104040.0,0.24450375]
[1762260474429,0.91892201,104050.0,104040.0,0.05227]
[1762260474866,0.91892201,104050.0,104040.0,0.24750375]
[1762260475367,0.91892201,104050.0,104040.0,0.05527]
[1762260475571,0.91892201,104050.0,104040.0,0.24750375]
[1762260475777,0.2210809,104050.0,104040.0,0.24750375]
[1762260475975,0.91892201,104050.0,104040.0,0.24750375]
[1762260476541,0.91892201,104050.0,104040.0,0.05527]
[1762260476747,0.93485201,104050.0,104040.0,0.03243]
[1762260477159,0.91892201,104050.0,104040.0,0.03243]
[1762260477388,0.91892201,104050.0,104040.0,0.24750375]
[1762260477792,0.91892201,104050.0,104040.0,0.05527]
[1762260478188,0.91892201,104050.0,104040.0,0.24750375]
[1762260478435,0.5965397,104050.0,104040.0,0.24750375]
[1762260478643,0.02886562,104050.0,104040.0,0.24750375]
[1762260478870,0.75987188,104060.0,104040.0,0.24750375]
[1762260479049,0.22106078,104060.0,104050.0,0.04927]
[1762260480225,0.78873486,104060.0,104050.0,0.04927]
[1762260480667,0.78873486,104060.0,104050.0,0.24148528]
[1762260480829,0.78873486,104060.0,104050.0,0.04927]
[1762260481018,0.78873486,104060.0,104050.0,0.2607068]
[1762260481219,0.78873486,104060.0,104050.0,0.04927]
[1762260482883,0.78873486,104060.0,104050.0,0.24148528]
[1762260483366,0.78873386,104060.0,104050.0,0.24148528]
[1762260483569,0.59653706,104060.0,104050.0,0.24148528]
[1762260484001,0.76960703,104070.0,104060.0,0.1921968]
[1762260484218,0.81625568,104070.0,104060.0,0.04927]
[1762260484431,0.81625568,104070.0,104060.0,0.2591215]
[1762260484645,0.80664677,104070.0,104060.0,0.2414668]
[1762260484820,0.78885846,104070.0,104060.0,0.2414668]
[1762260485258,0.75999812,104070.0,104060.0,0.04927]
[1762260485485,0.75999812,104070.0,104060.0,0.2414668]
[1762260485712,0.75999812,104070.0,104060.0,0.04927]
[1762260486184,0.75999812,104070.0,104060.0,0.2414668]
[1762260487518,0.0001457,104070.0,104060.0,0.2434668]
[1762260487762,0.0001457,104070.0,104060.0,0.2454668]
[1762260488397,0.39944844,104070.0,104060.0,0.2454668]
[1762260488616,0.0001457,104070.0,104060.0,0.2454668]
[1762260490660,0.0001457,104070.0,104060.0,0.2414668]
[1762260491082,0.0001457,104070.0,104060.0,0.2484668]
[1762260491289,0.0001457,104070.0,104060.0,0.2454668]
[1762260491499,0.0001457,104070.0,104060.0,0.2414668]
[1762260491714,0.0001457,104070.0,104060.0,0.2454668]
[1762260491921,0.0001457,104070.0,104060.0,0.2514668]
[1762260497825,0.00208815,104080.0,104070.0,0.19217834]
[1762260498026,0.00208815,104080.0,104070.0,0.38262741]
[1762260498460,0.60552248,104110.0,104100.0,0.19212295]
[1762260498667,0.60566815,104110.0,104100.0,0.21989295]
[1762260498869,0.57681819,104110.0,104100.0,0.24384295]
[1762260499074,0.00014567,104110.0,104100.0,0.24384295]
[1762260499905,0.00981496,104110.0,104100.0,0.24384295]
[1762260500118,0.00014567,104110.0,104100.0,0.24384295]
[1762260500904,0.00014567,104110.0,104100.0,0.24684295]
[1762260501350,0.00014567,104110.0,104100.0,0.25084295]
[1762260504273,0.00086706,104110.0,104100.0,0.25084295]
[1762260507102,0.56795218,104110.0,104100.0,0.29348295]
[1762260507320,0.56795218,104110.0,104100.0,0.25084295]
[1762260508670,0.00086706,104110.0,104100.0,0.25084295]
[1762260509098,0.56795218,104110.0,104100.0,0.25084295]
[1762260509524,0.00086706,104110.0,104100.0,0.25084295]
[1762260509711,0.56795218,104110.0,104100.0,0.25084295]
[1762260509850,0.00086706,104110.0,104100.0,0.25084295]
[1762260515991,0.3998139,104110.0,104100.0,0.25084295]
[1762260516220,0.3998139,104110.0,104100.0,0.29348295]
[1762260516444,0.3998139,104110.0,104100.0,0.25084295]
[1762260518288,0.5919184,104110.0,104100.0,0.25084295]
[1762260518442,0.60967229,104110.0,104100.0,0.25084295]
[1762260519081,0.81651463,104110.0,104100.0,0.25084295]
[1762260519283,0.41757157,104110.0,104100.0,0.25084295]
[1762260519885,0.3998139,104110.0,104100.0,0.25084295]
[1762260520064,0.99086524,104110.0,104100.0,0.03477]
[1762260520278,1.02384448,104110.0,104100.0,0.03477]
[1762260520482,1.02384448,104110.0,104100.0,0.01831]
[1762260520692,1.04430141,104110.0,104100.0,0.01831]
[1762260521123,1.04430141,104110.0,104100.0,0.01431]
[1762260521342,1.55690431,104110.0,104100.0,0.003]
[1762260521548,1.65238338,104110.0,104100.0,0.004]
[1762260521755,1.56668627,104110.0,104100.0,0.004]
[1762260522158,1.56668627,104110.0,104100.0,0.001]
[1762260522379,0.19212295,104100.0,104090.0,0.03439]
[1762260522592,0.77752737,104100.0,104090.0,0.03439]
[1762260522805,0.77752737,104100.0,104090.0,0.24174141]
[1762260523332,0.58540442,104100.0,104090.0,0.24174141]
[1762260523982,0.58540442,104100.0,104090.0,0.24374141]
[1762260524196,0.77752737,104100.0,104090.0,0.0516]
[1762260524418,0.79799326,104100.0,104090.0,0.0516]
[1762260524632,0.77752737,104100.0,104090.0,0.24474141]
[1762260524859,0.58540442,104100.0,104090.0,0.24474141]
[1762260525172,0.01824021,104100.0,104090.0,0.24474141]
[1762260525388,0.58540442,104100.0,104090.0,0.24474141]
[1762260525994,0.77752737,104100.0,104090.0,0.24474141]
[1762260526196,0.58540442,104100.0,104090.0,0.24474141]
[1762260527028,0.01824021,104100.0,104090.0,0.24474141]
[1762260527249,0.58540442,104100.0,104090.0,0.24474141]
[1762260527468,0.58540442,104100.0,104090.0,0.34022048]
[1762260528140,0.77752737,104100.0,104090.0,0.34022048]
[1762260528348,0.58540442,104100.0,104090.0,0.34022048]
[1762260529775,0.77752737,104100.0,104090.0,0.24474141]
[1762260530194,0.58540442,104100.0,104090.0,0.24474141]
[1762260532355,0.56764518,104100.0,104090.0,0.24474141]
[1762260532601,0.5854202,104100.0,104090.0,0.24474141]
[1762260533406,0.56764518,104100.0,104090.0,0.34022048]
[1762260533854,0.75976813,104100.0,104090.0,0.34022048]
[1762260534286,0.56764518,104100.0,104090.0,0.34022048]
[1762260534715,0.00048097,104100.0,104090.0,0.34022048]
[1762260535313,0.75976813,104100.0,104090.0,0.34022048]
[1762260535534,0.75976813,104100.0,104090.0,0.14607907]
[1762260535749,0.75976813,104100.0,104090.0,0.33822048]
[1762260535954,0.75976813,104100.0,104090.0,0.34122048]
[1762260536367,0.56764518,104100.0,104090.0,0.34122048]
[1762260536718,0.56764518,104100.0,104090.0,0.34022048]
[1762260536917,0.56764518,104100.0,104090.0,0.34422048]
[1762260538397,0.00048097,104100.0,104090.0,0.34422048]
[1762260539734,0.19260392,104100.0,104090.0,0.34422048]
[1762260540135,0.88952479,104100.0,104090.0,0.34422048]
[1762260540336,0.88952479,104100.0,104090.0,0.24874141]
[1762260540603,1.00972085,104100.0,104090.0,0.007]
[1762260541026,0.91514479,104100.0,104090.0,0.007]
[1762260541209,0.91514479,104100.0,104090.0,0.003]
[1762260541411,0.93562607,104100.0,104090.0,0.003]
[1762260541614,0.93562607,104100.0,104090.0,0.05382]
[1762260541615,0.91955607,104100.0,104090.0,0.05382]
[1762260541813,0.89907479,104100.0,104090.0,0.05082]
[1762260542049,0.20215392,104100.0,104090.0,0.05282]
[1762260542249,0.89907479,104100.0,104090.0,0.05282]
[1762260542562,1.00070452,104100.0,104090.0,0.05282]
[1762260542787,1.02118825,104100.0,104090.0,0.05282]
[1762260543437,1.00070452,104100.0,104090.0,0.05282]
[1762260543637,1.00070452,104100.0,104090.0,0.24496141]
[1762260544918,0.39975627,104100.0,104090.0,0.24496141]
[1762260545314,0.00048097,104100.0,104090.0,0.24496141]
[1762260545525,0.39975627,104100.0,104090.0,0.24496141]
[1762260545977,0.59187922,104100.0,104090.0,0.05282]
[1762260546185,1.01677452,104100.0,104090.0,0.20705141]
[1762260546367,1.00070452,104100.0,104090.0,0.24496141]
[1762260546581,1.00070452,104100.0,104090.0,0.05282]
[1762260546795,1.00070452,104100.0,104090.0,0.03025]
[1762260546999,1.01677452,104100.0,104090.0,0.01491]
[1762260547360,1.00070452,104100.0,104090.0,0.22239141]
[1762260547563,1.00070452,104100.0,104090.0,0.24496141]
[1762260547976,1.00070452,104100.0,104090.0,0.03025]
[1762260548178,1.03585452,104100.0,104090.0,0.003]
[1762260548631,1.0372987,104100.0,104090.0,0.003]
[1762260549205,1.0563787,104100.0,104090.0,0.003]
[1762260549425,0.19214141,104090.0,104080.0,0.03448]
[1762260549762,0.59141671,104090.0,104080.0,0.03448]
[1762260549965,0.59141671,104090.0,104080.0,0.04982]
[1762260550599,0.59141671,104090.0,104070.0,0.01192]
[1762260550600,0.19215987,104080.0,104070.0,0.01192]
[1762260550807,0.19217834,104070.0,104060.0,0.20416652]
[1762260551015,1.10227801,104070.0,104060.0,0.01197]
[1762260551192,1.10227801,104070.0,104050.0,0.23630604]
[1762260551193,1.12135801,104070.0,104050.0,0.23630604]
[1762260551332,0.5914721,104060.0,104050.0,0.23630604]
[1762260551552,0.3992753,104060.0,104050.0,0.23630604]
[1762260551750,0.3992753,104060.0,104050.0,0.25164604]
[1762260551956,0.3992753,104060.0,104050.0,0.25179174]
[1762260552478,0.89933418,104060.0,104050.0,0.25479174]
[1762260552701,0.69758738,104060.0,104050.0,0.25479174]
[1762260553579,0.70725521,104060.0,104050.0,0.25479174]
[1762260553805,0.70725521,104060.0,104050.0,0.25879174]
[1762260553996,0.89945201,104060.0,104050.0,0.25879174]
[1762260554211,0.90900201,104060.0,104050.0,0.0569657]
[1762260554408,0.90900201,104060.0,104050.0,0.22661098]
[1762260554633,0.92507201,104060.0,104050.0,0.0343957]
[1762260555040,0.71680521,104060.0,104050.0,0.25142098]
[1762260555240,0.70725521,104060.0,104050.0,0.25142098]
[1762260555467,0.89945201,104060.0,104050.0,0.0562057]
[1762260555679,0.90900201,104060.0,104050.0,0.0542057]
[1762260555885,0.90900201,104060.0,104050.0,0.24742098]
[1762260556521,0.70725521,104060.0,104050.0,0.24742098]
[1762260556733,0.89945201,104060.0,104050.0,0.24742098]
[1762260558835,0.70725521,104060.0,104050.0,0.24742098]
[1762260559108,0.00966783,104060.0,104050.0,0.34290005]
[1762260559530,0.88976753,104070.0,104060.0,0.1921968]
[1762260559739,0.88976753,104070.0,104060.0,0.2035168]
[1762260560126,0.88976753,104070.0,104060.0,0.2439068]
[1762260560272,0.88976753,104070.0,104060.0,0.2190968]
[1762260560880,0.00024051,104090.0,104080.0,0.19215987]
[1762260561054,0.00024051,104090.0,104080.0,0.29895894]
[1762260561272,0.00024051,104090.0,104080.0,0.33934894]
[1762260561697,0.00024051,104090.0,104080.0,0.38198894]
[1762260562453,0.00024051,104090.0,104080.0,0.38798894]
[1762260563578,0.00024051,104090.0,104080.0,0.39198894]
[1762260563983,5.35e-06,104090.0,104080.0,0.39198894]
[1762260566594,5.35e-06,104090.0,104080.0,0.38776684]
[1762260567641,5.35e-06,104090.0,104080.0,0.34512684]
[1762260567840,5.35e-06,104090.0,104080.0,0.38376684]
[1762260568581,5.35e-06,104090.0,104080.0,0.37776684]
[1762260568781,5.35e-06,104090.0,104080.0,0.38176684]
[1762260569721,5.35e-06,104090.0,104080.0,0.38776684]
[1762260570129,5.35e-06,104090.0,104080.0,0.37776684]
[1762260573534,5.35e-06,104090.0,104080.0,0.33512684]
[1762260573704,5.35e-06,104090.0,104080.0,0.37772684]
[1762260590679,5.35e-06,104090.0,104080.0,0.58772683]
[1762260594719,5.35e-06,104090.0,104080.0,0.73512683]
[1762260595783,5.35e-06,104090.0,104080.0,0.68252684]
[1762260596035,5.35e-06,104090.0,104080.0,0.73512683]
[1762260597732,5.35e-06,104090.0,104080.0,0.73612683]
[1762260598267,5.35e-06,104090.0,104080.0,0.73512683]
[1762260600026,5.35e-06,104090.0,104080.0,0.58772683]
[1762260600690,5.35e-06,104090.0,104080.0,0.33512684]
[1762260600907,0.3989374,104090.0,104080.0,0.33512684]
[1762260601122,0.3989374,104090.0,104080.0,0.37772684]
[1762260602451,5.35e-06,104090.0,104080.0,0.37772684]
[1762260602664,0.00200535,104090.0,104080.0,0.37772684]
[1762260603079,0.00200535,104090.0,104080.0,0.38372684]
[1762260603354,5.35e-06,104090.0,104080.0,0.38372684]
[1762260603772,5.35e-06,104090.0,104080.0,0.39572684]
[1762260604674,5.35e-06,104090.0,104080.0,0.26186987]
[1762260604675,0.56697458,104090.0,104080.0,0.26186987]
[1762260604918,0.77500599,104090.0,104080.0,0.21015987]
[1762260605310,0.79408599,104090.0,104080.0,0.21015987]
[1762260605877,0.79408599,104090.0,104080.0,0.19215987]
[1762260606082,0.19215987,104080.0,104070.0,0.03625]
[1762260606260,0.88957817,104080.0,104060.0,0.21312664]
[1762260606461,0.56696923,104070.0,104060.0,0.21312664]
[1762260606660,0.19217834,104070.0,104060.0,0.21312664]
[1762260606862,0.87368817,104080.0,104060.0,0.21312664]
[1762260607102,0.75914757,104070.0,104060.0,0.21312664]
[1762260607296,0.56696923,104070.0,104060.0,0.21312664]
[1762260607658,0.68062529,104080.0,104070.0,0.19217834]
[1762260607860,0.58474895,104080.0,104070.0,0.20457834]
[1762260608124,0.7781963,104090.0,104080.0,0.19215987]
[1762260608443,0.03825402,104090.0,104080.0,0.23255987]
[1762260608612,0.90733462,104090.0,104070.0,0.20457834]
[1762260608819,0.90733452,104090.0,104080.0,0.19215987]
[1762260608995,0.90733452,104090.0,104070.0,0.20457834]
[1762260609216,0.56696923,104080.0,104070.0,0.20457834]
[1762260609417,0.21122676,104090.0,104080.0,0.19215987]
[1762260609648,0.56697458,104090.0,104080.0,0.19715987]
[1762260609795,5.35e-06,104090.0,104080.0,0.19715987]
[1762260610000,5.35e-06,104090.0,104080.0,0.21562987]
[1762260610192,5.35e-06,104090.0,104080.0,0.24055987]
[1762260611835,5.35e-06,104090.0,104080.0,0.24555987]
[1762260618205,5.35e-06,104090.0,104080.0,0.23755987]
[1762260618623,5.35e-06,104090.0,104080.0,0.24455987]
[1762260619059,5.35e-06,104090.0,104080.0,0.25155987]
[1762260621622,5.35e-06,104090.0,104080.0,0.26376987]
[1762260626370,0.59251458,104090.0,104080.0,0.23883987]
[1762260626592,0.78465599,104090.0,104080.0,0.23883987]
[1762260627030,0.78465599,104090.0,104080.0,0.03121]
[1762260627230,0.78465599,104090.0,104080.0,0.01921]
[1762260627436,0.78465599,104090.0,104080.0,0.20436987]
[1762260627624,0.78465599,104090.0,104080.0,0.21636987]
[1762260627826,0.59251458,104090.0,104080.0,0.21636987]
[1762260628042,0.59251458,104090.0,104080.0,0.21960987]
[1762260628187,0.78465599,104090.0,104080.0,0.22260987]
[1762260628790,0.78465599,104090.0,104080.0,0.22760987]
[1762260628990,0.59251458,104090.0,104080.0,0.22760987]
[1762260629280,0.57651458,104090.0,104080.0,0.25139987]
[1762260630792,0.76865599,104090.0,104080.0,0.22760987]
[1762260632900,0.57651458,104090.0,104080.0,0.22760987]
[1762260633312,0.76865599,104090.0,104080.0,0.22760987]
[1762260634822,0.80395599,104090.0,104080.0,0.20015987]
[1762260635422,0.78487599,104090.0,104080.0,0.20015987]
[1762260636044,0.78487599,104090.0,104080.0,0.21175987]
[1762260636458,1.01646018,104090.0,104080.0,0.21175987]
[1762260639370,1.17279717,104090.0,104080.0,0.008]
[1762260639736,1.21102903,104090.0,104080.0,0.008]
[1762260640349,1.21102903,104090.0,104080.0,0.003]
[1762260640553,0.19215987,104080.0,104070.0,0.19217779]
[1762260640734,1.02601329,104080.0,104070.0,0.19217779]
[1762260643197,1.02601329,104080.0,104070.0,0.19417779]
[1762260643532,1.02601329,104080.0,104070.0,0.19717779]
[1762260643946,0.83385342,104080.0,104070.0,0.19717779]
[1762260644125,1.02601329,104080.0,104070.0,0.19717779]
[1762260646094,1.05487052,104080.0,104070.0,0.19717779]
[1762260646801,0.06415723,104080.0,104070.0,0.19717779]
[1762260646990,1.05487052,104080.0,104070.0,0.19717779]
[1762260649460,0.84363065,104080.0,104070.0,0.19717779]
[1762260649685,0.42813394,104080.0,104070.0,0.24769779]
[1762260649887,0.39927671,104080.0,104070.0,0.34317686]
[1762260650599,1.00673329,104080.0,104070.0,0.20870779]
[1762260650841,1.02581329,104080.0,104070.0,0.19717834]
[1762260650987,1.02581329,104080.0,104070.0,0.003]
[1762260651188,1.02581329,104080.0,104070.0,0.19517834]
[1762260651409,1.12038935,104080.0,104070.0,0.19217834]
[1762260651786,1.12038935,104080.0,104070.0,0.19917834]
[1762260652045,1.02581329,104080.0,104070.0,0.19917834]
[1762260652222,0.83365342,104080.0,104070.0,0.19917834]
[1762260652444,0.81457342,104080.0,104070.0,0.19917834]
[1762260652794,0.79855342,104080.0,104070.0,0.24969834]
[1762260655361,0.39927671,104080.0,104070.0,0.24969834]
[1762260655988,0.39927671,104080.0,104070.0,0.34517741]
[1762260656187,0.4376781,104090.0,104080.0,0.19215987]
[1762260656417,0.4376781,104090.0,104080.0,0.20368987]
[1762260657448,0.4376781,104090.0,104080.0,0.20768987]
[1762260657657,0.03840139,104090.0,104080.0,0.24667987]
[1762260657849,0.4281381,104090.0,104080.0,0.24667987]
[1762260658047,0.39928206,104090.0,104080.0,0.24667987]
[1762260658249,0.39928206,104090.0,104080.0,0.24867987]
[1762260658963,1.18084621,104090.0,104080.0,0.006]
[1762260659186,0.73154254,104090.0,104080.0,0.19815987]
[1762260659583,0.61698347,104090.0,104080.0,0.19815987]
[1762260659791,0.42484206,104090.0,104080.0,0.20968987]
[1762260659970,0.62981754,104090.0,104080.0,0.22485987]
[1762260660379,0.62976995,104090.0,104080.0,0.22485987]
[1762260660555,0.64578995,104090.0,104080.0,0.22485987]
[1762260660759,0.64578995,104090.0,104080.0,0.20968987]
[1762260661167,0.64578995,104090.0,104080.0,0.006]
[1762260661399,0.66486995,104090.0,104080.0,0.006]
[1762260661943,0.66486995,104090.0,104080.0,0.19815987]
[1762260662126,0.66486995,104090.0,104080.0,0.006]
[1762260662329,0.66486995,104090.0,104080.0,0.19815987]
[1762260662962,0.45364854,104090.0,104080.0,0.19815987]
[1762260663169,0.64578995,104090.0,104080.0,0.20968987]
[1762260663349,0.45364854,104090.0,104080.0,0.20968987]
[1762260664362,0.64578995,104090.0,104080.0,0.20968987]
[1762260664566,0.45364854,104090.0,104080.0,0.20968987]
[1762260664972,0.00954535,104090.0,104080.0,0.24867987]
[1762260665397,0.40877447,104090.0,104080.0,0.24867987]
[1762260667742,5.35e-06,104090.0,104080.0,0.24867987]
[1762260667964,5.35e-06,104090.0,104080.0,0.29127987]
[1762260668846,5.35e-06,104090.0,104080.0,0.28527987]
[1762260669087,5.35e-06,104090.0,104080.0,0.29027987]
[1762260669955,5.35e-06,104090.0,104080.0,0.28527987]
[1762260670167,5.35e-06,104090.0,104080.0,0.29027987]
[1762260670443,5.35e-06,104090.0,104080.0,0.29627987]
[1762260670669,5.35e-06,104090.0,104080.0,0.29127987]
[1762260670885,5.35e-06,104090.0,104080.0,0.29827987]
[1762260671573,5.35e-06,104090.0,104080.0,0.51083309]
[1762260671993,0.00200535,104090.0,104080.0,0.53967446]
[1762260672201,0.00200535,104090.0,104080.0,0.51083309]
[1762260672411,0.00200535,104090.0,104080.0,0.50483309]
[1762260672616,0.00961096,104130.0,104120.0,0.19208605]
[1762260672617,7.096e-05,104130.0,104120.0,0.19208605]
[1762260672818,7.096e-05,104130.0,104120.0,0.31417512]
[1762260673021,7.096e-05,104130.0,104120.0,0.33799512]
[1762260673231,7.096e-05,104130.0,104120.0,0.24251605]
[1762260673856,0.00055682,104130.0,104120.0,0.24751605]
[1762260674059,0.01009682,104130.0,104120.0,0.24751605]
[1762260674866,0.01009682,104130.0,104120.0,0.25251605]
[1762260675415,0.00055682,104130.0,104120.0,0.25251605]
[1762260676069,0.00055682,104130.0,104120.0,0.34799512]
[1762260678122,0.00055682,104130.0,104120.0,0.25251605]
[1762260678318,0.02740844,104130.0,104120.0,0.21352605]
[1762260678476,0.01105844,104130.0,104120.0,0.25373605]
[1762260678875,0.20312604,104130.0,104120.0,0.25373605]
[1762260679301,0.01105844,104130.0,104120.0,0.25373605]
[1762260679707,0.21947604,104130.0,104120.0,0.21352605]
[1762260679903,0.40953117,104130.0,104120.0,0.01]
[1762260680104,1.14550632,104130.0,104120.0,0.01]
[1762260680332,1.17144882,104130.0,104120.0,0.01]
[1762260680491,1.16323779,104130.0,104120.0,0.01]
[1762260680883,1.16323779,104130.0,104120.0,0.005]
[1762260681085,0.19214127,104100.0,104080.0,0.21415786]
[1762260681291,0.19214141,104090.0,104080.0,0.01239]
[1762260681490,0.20177427,104090.0,104080.0,0.20454987]
[1762260681897,0.00963286,104090.0,104080.0,0.20454987]
[1762260682099,0.93653786,104100.0,104080.0,0.20454987]
[1762260682546,0.19214141,104090.0,104080.0,0.20454987]
[1762260682702,0.19214141,104090.0,104080.0,0.20954987]
[1762260682911,0.93663117,104100.0,104080.0,0.22016987]
[1762260683208,0.93663117,104100.0,104080.0,0.008]
[1762260683209,1.02893523,104090.0,104080.0,0.008]
[1762260683642,1.05779024,104090.0,104080.0,0.005]
[1762260683828,0.19215987,104080.0,104070.0,0.07019]
[1762260684195,1.03202635,104090.0,104080.0,0.003]
[1762260684363,1.03202635,104090.0,104080.0,0.19515987]
[1762260684579,1.02929635,104090.0,104080.0,0.19515987]
[1762260684755,0.23734968,104090.0,104080.0,0.19515987]
[1762260684956,0.23734968,104090.0,104080.0,0.19815987]
[1762260685162,0.23734642,104090.0,104080.0,0.19515987]
[1762260685361,0.23734642,104090.0,104080.0,0.19215987]
[1762260685597,0.22099642,104090.0,104080.0,0.20977987]
[1762260685770,0.22099642,104090.0,104080.0,0.23436987]
[1762260686405,0.35190549,104090.0,104080.0,0.002]
[1762260686567,0.35190549,104090.0,104080.0,0.005]
[1762260686568,0.36144549,104090.0,104080.0,0.005]
[1762260686779,0.3710984,104090.0,104080.0,0.005]
[1762260687210,0.3710984,104090.0,104080.0,0.19715987]
[1762260687389,0.25653933,104090.0,104080.0,0.20954987]
[1762260687586,0.06439792,104090.0,104080.0,0.20954987]
[1762260688530,0.04804792,104090.0,104080.0,0.22516987]
[1762260688941,1.067566,104090.0,104080.0,0.005]
[1762260689550,1.067566,104090.0,104080.0,0.19715987]
[1762260689751,0.24018933,104090.0,104080.0,0.22516987]
[1762260690410,1.16209206,104090.0,104080.0,0.005]
[1762260691386,1.20909438,104090.0,104080.0,0.002]
[1762260691587,0.19215987,104080.0,104070.0,0.0578]
[1762260691934,1.05672333,104080.0,104070.0,0.0578]
[1762260692269,1.08558631,104080.0,104070.0,0.0578]
[1762260693265,1.06516761,104080.0,104070.0,0.0578]
[1762260694222,1.06516761,104080.0,104070.0,0.24997834]
[1762260694647,1.06616761,104080.0,104070.0,0.24997834]
[1762260695014,0.77943168,104080.0,104070.0,0.24997834]
[1762260695345,0.04616298,104080.0,104070.0,0.24997834]
[1762260695584,0.95387045,104080.0,104070.0,0.0578]
[1762260695761,0.95387045,104080.0,104070.0,0.24997834]
[1762260695961,0.95287045,104080.0,104070.0,0.24997834]
[1762260696160,0.76071058,104080.0,104070.0,0.25297834]
[1762260696461,0.95287045,104080.0,104070.0,0.25297834]
[1762260696673,1.01042259,104080.0,104070.0,0.25297834]
[1762260696890,0.76071058,104080.0,104070.0,0.25497834]
[1762260697302,0.06424298,104080.0,104070.0,0.25497834]
[1762260697422,0.06424298,104080.0,104070.0,0.0598]
[1762260697423,0.23732285,104080.0,104070.0,0.0598]
[1762260697622,0.95287045,104080.0,104070.0,0.25197834]
[1762260697827,0.95287045,104080.0,104070.0,0.25297834]
[1762260698060,0.95287045,104080.0,104070.0,0.0588]
[1762260698254,1.04744651,104080.0,104070.0,0.0588]
[1762260698686,1.04744651,104080.0,104070.0,0.0608]
[1762260698888,1.04744651,104080.0,104070.0,0.0628]
[1762260699084,1.04744651,104080.0,104070.0,0.0598]
[1762260699270,1.04744651,104080.0,104070.0,0.0578]
[1762260699476,1.04744651,104080.0,104070.0,0.0588]
[1762260699879,1.06512994,104080.0,104070.0,0.0588]
[1762260700320,1.04744651,104080.0,104070.0,0.0588]
[1762260700664,1.04744651,104080.0,104070.0,0.0578]
[1762260700867,1.0651262,104080.0,104070.0,0.0578]
[1762260701067,1.0661262,104080.0,104070.0,0.0578]
[1762260702034,1.06612383,104080.0,104070.0,0.0578]
[1762260702786,1.08649046,104080.0,104070.0,0.0578]
[1762260704886,1.06612383,104080.0,104070.0,0.24997834]
[1762260705101,0.0829203,104080.0,104070.0,0.24997834]
[1762260705244,0.76171058,104080.0,104070.0,0.24997834]
[1762260706135,0.0173,104080.0,104070.0,0.27880834]
[1762260706312,0.001,104080.0,104070.0,0.27880834]
[1762260706778,0.11467198,104090.0,104080.0,0.19215987]
[1762260706968,0.30681339,104090.0,104080.0,0.19215987]
[1762260707178,0.15030198,104090.0,104080.0,0.19215987]
[1762260707793,0.34244339,104090.0,104080.0,0.19215987]
[1762260707996,0.34244339,104090.0,104080.0,0.19315987]
[1762260708220,1.03891099,104090.0,104080.0,0.19315987]
[1762260708422,1.03891099,104090.0,104080.0,0.19415987]
[1762260709206,1.05665047,104090.0,104080.0,0.19415987]
[1762260710257,1.07710316,104090.0,104080.0,0.19415987]
[1762260711002,0.77040268,104090.0,104080.0,0.19415987]
[1762260711176,0.74994999,104090.0,104080.0,0.21060987]
[1762260711496,0.05348239,104090.0,104080.0,0.21060987]
[1762260711644,0.05348239,104090.0,104080.0,0.19415987]
[1762260711839,0.03693239,104090.0,104080.0,0.21060987]
[1762260712666,0.84542906,104090.0,104080.0,0.19415987]
[1762260713070,0.86450906,104090.0,104080.0,0.19415987]
[1762260713274,1.05665047,104090.0,104080.0,0.19415987]
[1762260715448,1.05665047,104090.0,104080.0,0.002]
[1762260715844,1.05665047,104090.0,104080.0,0.19415987]
[1762260717605,0.76902999,104090.0,104080.0,0.19415987]
[1762260719746,0.03693239,104090.0,104080.0,0.24718987]
[1762260719943,0.02739239,104090.0,104080.0,0.24718987]
[1762260720146,0.02739239,104090.0,104080.0,0.22298987]
[1762260720364,0.02739239,104090.0,104080.0,0.24718987]
[1762260720548,0.02739239,104090.0,104080.0,0.22298987]
[1762260721104,0.2195338,104090.0,104080.0,0.22298987]
[1762260721403,0.04394239,104090.0,104080.0,0.22298987]
[1762260722348,0.59448518,104090.0,104080.0,0.22298987]
[1762260722789,0.91773566,104090.0,104080.0,0.002]
[1762260722950,1.01231172,104090.0,104080.0,0.002]
[1762260723158,1.03277165,104090.0,104080.0,0.002]
[1762260723379,1.04165195,104090.0,104080.0,0.002]
[1762260723985,1.04165195,104090.0,104080.0,0.001]
[1762260724357,0.19215987,104080.0,104070.0,0.0578]
[1762260724570,0.91745843,104080.0,104070.0,0.0578]
[1762260724802,0.93653843,104080.0,104070.0,0.0578]
[1762260726289,0.96540141,104080.0,104070.0,0.0578]
[1762260726507,0.96640141,104080.0,104070.0,0.0578]
[1762260732550,1.21270141,104080.0,104070.0,0.0578]
[1762260732704,1.21270141,104080.0,104070.0,0.00372]
[1762260733582,0.19223375,104040.0,104020.0,0.24048633]